fUSD/lending_fUSD_20260429
["ID","MTS","AMOUNT","RATE_DAILY","PERIOD"]
[421319854,1777431032182,-262.90206542,8.333e-05,2]
[421319855,1777431032191,-272.62944185,8.333e-05,2]
[421319857,1777431032202,-282.71673119,8.333e-05,2]
[421319859,1777431032211,-310.11376165,8.333e-05,2]
[421319861,1777431032221,-209.40437684,8.333e-05,2]
[421319863,1777431032231,-209.40437684,8.333e-05,2]
[421319865,1777431032241,-1002.4750944,8.336e-05,2]
[421319866,1777431032251,-22103.69124407,8.337e-05,2]
[421319869,1777431032263,-4862.1824804,8.337e-05,2]
[421319871,1777431032275,-315.42809693,8.337e-05,2]
[421319873,1777431032287,-347.5654922,8.337e-05,2]
[421319875,1777431032297,-1316.1200422,8.35e-05,2]
[421319884,1777431037609,-2298.27441512,8.35e-05,2]
[421319885,1777431037622,-8612.44540064,8.35e-05,2]
[421319886,1777431037632,-500.0,8.384e-05,2]
[421319887,1777431037642,-500.0,8.384e-05,2]
[421319888,1777431037652,-2536.11849594,8.388e-05,2]
[421319889,1777431037665,-3246.17946351,8.388e-05,2]
[421319890,1777431037675,-151.0,8.388e-05,2]
[421319891,1777431037685,-151.0,8.431e-05,2]
[421319892,1777431037695,-1000.0,8.432e-05,2]
[421319893,1777431037705,-1533.0,8.438e-05,2]
[421319894,1777431037715,-1533.0,8.438e-05,2]
[421319895,1777431037726,-1530.0,8.438e-05,2]
[421319896,1777431037735,-152.0,8.438e-05,2]
[421319897,1777431037745,-151.0,8.438e-05,2]
[421319898,1777431037755,-151.0,8.438e-05,2]
[421319899,1777431037765,-151.0,8.443e-05,2]
[421319900,1777431037775,-151.0,8.498e-05,2]
[421319901,1777431037785,-151.0,8.553e-05,2]
[421319902,1777431037794,-1000.0,8.578e-05,2]
[421319903,1777431037805,-151.0,8.608e-05,2]
[421319904,1777431037814,-692.79,8.632e-05,2]
[421319905,1777431037824,-500.0,8.633e-05,2]
[421319906,1777431037835,-10526.67077024,8.634e-05,2]
[421319907,1777431037847,-937.5,8.634e-05,2]
[421319908,1777431037875,-364.04145259,8.634e-05,2]
[421319909,1777431037889,-465.55537377,8.634e-05,2]
[421319910,1777431037985,-1898.96099122,8.634e-05,2]
[421319911,1777431039817,-20645.85240393,8.634e-05,2]
[421319913,1777431039826,-151.0,8.663e-05,2]
[421319915,1777431039836,-151.0,8.718e-05,2]
[421319917,1777431039845,-6444.445,8.739e-05,2]
[421319919,1777431039854,-426.091,8.739e-05,2]
[421319921,1777431039863,-151.0,8.773e-05,2]
[421319923,1777431039873,-221.0,8.795e-05,2]
[421319925,1777431039882,-151.0,8.828e-05,2]
[421319926,1777431039892,-308.45979995,8.875e-05,2]
[421319928,1777431039901,-771.01748645,8.881e-05,2]
[421319930,1777431039910,-1481.23780761,8.881e-05,2]
[421319932,1777431039919,-200.0,8.881e-05,2]
[421319934,1777431039929,-290.26104003,8.881e-05,2]
[421319936,1777431039938,-181.08010149,8.881e-05,2]
[421319938,1777431039948,-240.13598786,8.881e-05,2]
[421319940,1777431039958,-217.15233878,8.881e-05,2]
[421319942,1777431039967,-151.0,8.883e-05,2]
[421319944,1777431039978,-692.79,8.906e-05,2]
[421319946,1777431039988,-500.0,8.907e-05,2]
[421319948,1777431039997,-5000.0,8.945e-05,2]
[421319950,1777431040007,-500.0,8.949e-05,2]
[421319951,1777431040016,-458.60668508,8.949e-05,2]
[421319953,1777431040025,-500.0,8.949e-05,2]
[421319955,1777431040034,-500.0,8.949e-05,2]
[421319957,1777431040043,-500.0,8.949e-05,2]
[421319959,1777431040053,-500.0,8.949e-05,2]
[421319961,1777431040062,-500.0,8.949e-05,2]
[421319963,1777431040072,-500.0,8.949e-05,2]
[421319965,1777431040081,-500.0,8.949e-05,2]
[421319967,1777431040091,-500.0,8.949e-05,2]
[421319969,1777431040100,-500.0,8.949e-05,2]
[421319971,1777431040111,-500.0,8.949e-05,2]
[421319972,1777431040121,-500.0,8.949e-05,2]
[421319974,1777431040130,-500.0,8.949e-05,2]
[421319976,1777431040141,-500.0,8.949e-05,2]
[421319978,1777431040150,-500.0,8.949e-05,2]
[421319980,1777431040160,-500.0,8.949e-05,2]
[421319981,1777431040170,-500.0,8.949e-05,2]
[421319983,1777431040180,-500.0,8.949e-05,2]
[421319985,1777431040189,-500.0,8.949e-05,2]
[421319987,1777431040199,-500.0,8.949e-05,2]
[421319989,1777431040209,-500.0,8.949e-05,2]
[421319991,1777431040219,-500.0,8.949e-05,2]
[421319993,1777431040229,-500.0,8.949e-05,2]
[421319995,1777431040239,-300.0,8.95e-05,2]
[421319997,1777431040248,-255.0,8.95e-05,2]
[421319999,1777431040259,-420.0,8.95e-05,2]
[421320001,1777431040268,-1680.0,8.95e-05,2]
[421320003,1777431040278,-277.0,8.95e-05,2]
[421320005,1777431040287,-502.13715881,8.951e-05,2]
[421320007,1777431040297,-250.0,8.951e-05,2]
[421320009,1777431040306,-2850.8900605,8.951e-05,2]
[421320011,1777431040318,-394.07604548,8.951e-05,2]
[421320730,1777431067267,163.0,8.951e-05,3]
[421320731,1777431082593,6787.8403,8.038e-05,2]
[421320732,1777431112985,500.0,8.037e-05,2]
[421320733,1777431127127,164.0,8.037e-05,3]
[421320734,1777431154848,5000.01,8.038e-05,2]
[421320735,1777431154873,5000.01,8.038e-05,2]
[421320736,1777431154898,5000.01,8.038e-05,2]
[421320737,1777431154923,5000.01,8.038e-05,2]
[421320738,1777431154948,9500.01,8.038e-05,2]
[421320739,1777431154973,10000.01,8.038e-05,2]
[421320740,1777431154998,10000.01,8.038e-05,2]
[421320741,1777431155022,10000.01,8.038e-05,2]
[421320742,1777431155048,10000.01,8.038e-05,2]
[421320743,1777431155072,10000.01,8.038e-05,2]
[421320744,1777431155097,10000.01,8.038e-05,2]
[421320745,1777431155121,10000.01,8.038e-05,2]
[421320746,1777431155146,10000.01,8.038e-05,2]
[421320747,1777431155172,10000.01,8.038e-05,2]
[421320748,1777431155203,329209.4568,8.038e-05,2]
[421320749,1777431178078,4159.8346,8.038e-05,2]
[421320750,1777431184343,5000.01,8.038e-05,2]
[421320751,1777431184367,1844.8376,8.038e-05,2]
[421320752,1777431185452,164.0,8.038e-05,3]
[421320753,1777431247055,164.0,8.038e-05,3]
[421320754,1777431247556,6786.3412,8.038e-05,2]
[421320755,1777431298926,10000.01,8.038e-05,2]
[421320756,1777431298954,10000.01,8.038e-05,2]
[421320757,1777431298980,10000.01,8.038e-05,2]
[421320758,1777431299009,10000.01,8.038e-05,2]
[421320759,1777431299035,10000.01,8.038e-05,2]
[421320760,1777431299063,10000.01,8.038e-05,2]
[421320761,1777431299090,10000.01,8.038e-05,2]
[421320762,1777431299115,10000.01,8.038e-05,2]
[421320763,1777431299142,10000.01,8.038e-05,2]
[421320764,1777431299167,10000.01,8.038e-05,2]
[421320765,1777431299192,5000.01,8.038e-05,2]
[421320766,1777431299216,5000.01,8.038e-05,2]
[421320767,1777431299240,5000.01,8.038e-05,2]
[421320768,1777431299265,2151.9476,8.038e-05,2]
[421320769,1777431305962,173.0,8.038e-05,3]
[421320770,1777431443804,6032.40776,8.725e-05,2]
[421320771,1777431487931,500.0,8.702e-05,2]
[421320772,1777431488229,500.0,8.702e-05,2]
[421320773,1777431488724,500.0,8.702e-05,2]
[421320774,1777431488762,500.0,8.702e-05,2]
[421320775,1777431488793,500.0,8.702e-05,2]
[421320776,1777431488838,500.0,8.702e-05,2]
[421320777,1777431488872,500.0,8.702e-05,2]
[421320778,1777431488901,500.0,8.702e-05,2]
[421320779,1777431488971,500.0,8.702e-05,2]
[421320780,1777431489016,500.0,8.702e-05,2]
[421320781,1777431489295,0.01,8.702e-05,2]
[421320782,1777431489319,560.81088035,8.702e-05,2]
[421320783,1777431489525,393.25409619,8.702e-05,2]
[421320784,1777431490016,500.0,8.702e-05,2]
[421320785,1777431490175,500.0,8.702e-05,2]
[421320786,1777431490632,500.0,8.702e-05,2]
[421320787,1777431490803,500.0,8.702e-05,2]
[421320788,1777431490839,500.0,8.702e-05,2]
[421320789,1777431490994,500.0,8.702e-05,2]
[421320790,1777431491024,500.0,8.702e-05,2]
[421320791,1777431491159,500.0,8.702e-05,2]
[421320792,1777431491224,45.94502346,8.702e-05,2]
[421320793,1777431491248,454.05497654,8.702e-05,2]
[421320794,1777431491354,500.0,8.702e-05,2]
[421320795,1777431491386,500.0,8.702e-05,2]
[421320796,1777431491523,500.0,8.702e-05,2]
[421320797,1777431491555,500.0,8.702e-05,2]
[421320798,1777431491705,500.0,8.702e-05,2]
[421320799,1777431491741,500.0,8.702e-05,2]
[421320800,1777431491860,500.0,8.702e-05,2]
[421320801,1777431491896,500.0,8.702e-05,2]
[421320802,1777431492054,500.0,8.702e-05,2]
[421320803,1777431492430,500.0,8.702e-05,2]
[421320804,1777431492463,500.0,8.702e-05,2]
[421320805,1777431492622,500.0,8.702e-05,2]
[421320806,1777431492787,500.0,8.702e-05,2]
[421320807,1777431492845,500.0,8.702e-05,2]
[421320808,1777431492933,179.14777329,8.702e-05,2]
[421320809,1777431493010,483.61529848,8.702e-05,2]
[421320810,1777431546906,500.0,8.702e-05,2]
[421320811,1777431546957,500.0,8.702e-05,2]
[421320812,1777431547132,504.09729027,8.702e-05,2]
[421320813,1777431547177,500.0,8.702e-05,2]
[421320814,1777431547306,500.0,8.702e-05,2]
[421320815,1777431547498,353.87756393,8.702e-05,2]
[421320816,1777431547622,150.0,8.702e-05,2]
[421320817,1777431548727,500.0,8.702e-05,2]
[421320818,1777431548838,500.0,8.702e-05,2]
[421320819,1777431549054,500.0,8.702e-05,2]
[421320820,1777431549210,500.0,8.702e-05,2]
[421320821,1777431549370,500.0,8.702e-05,2]
[421320822,1777431549527,500.0,8.702e-05,2]
[421320823,1777431549693,500.0,8.702e-05,2]
[421320824,1777431549866,500.0,8.702e-05,2]
[421320825,1777431550022,500.0,8.702e-05,2]
[421320826,1777431550179,500.0,8.702e-05,2]
[421320827,1777431550334,500.0,8.702e-05,2]
[421320828,1777431550495,500.0,8.702e-05,2]
[421320829,1777431550661,544.3204282,8.702e-05,2]
[421320831,1777431688791,500.0,8.702e-05,2]
[421320832,1777431688952,500.0,8.702e-05,2]
[421320833,1777431689476,500.0,8.702e-05,2]
[421320834,1777431689508,500.0,8.702e-05,2]
[421320835,1777431689546,500.0,8.702e-05,2]
[421320836,1777431689864,500.0,8.702e-05,2]
[421320837,1777431689907,500.0,8.702e-05,2]
[421320838,1777431689943,500.0,8.702e-05,2]
[421320839,1777431690109,500.0,8.702e-05,2]
[421320840,1777431690273,500.0,8.702e-05,2]
[421320841,1777431690436,0.01,8.702e-05,2]
[421320842,1777431690458,499.99,8.702e-05,2]
[421320843,1777431690704,500.0,8.702e-05,2]
[421320844,1777431691102,500.0,8.702e-05,2]
[421320845,1777431691273,231.85832852,8.702e-05,2]
[421320846,1777431768731,150.0,8.702e-05,2]
[421320847,1777431768888,150.0,8.702e-05,2]
[421320848,1777431769072,150.0,8.702e-05,2]
[421320849,1777431769213,150.0,8.702e-05,2]
[421320850,1777431769379,184.86011981,8.702e-05,2]
[421320851,1777431769726,500.0,8.702e-05,2]
[421320852,1777431769904,500.0,8.702e-05,2]
[421320853,1777431770148,500.0,8.702e-05,2]
[421320854,1777431770315,500.0,8.702e-05,2]
[421320855,1777431770501,500.0,8.702e-05,2]
[421320856,1777431770674,500.0,8.702e-05,2]
[421320857,1777431770840,500.0,8.702e-05,2]
[421320858,1777431771011,500.0,8.702e-05,2]
[421320859,1777431771176,500.0,8.702e-05,2]
[421320860,1777431771351,500.0,8.702e-05,2]
[421320861,1777431771539,500.0,8.702e-05,2]
[421320862,1777431771753,500.0,8.702e-05,2]
[421320863,1777431772122,500.0,8.702e-05,2]
[421320864,1777431772288,500.0,8.702e-05,2]
[421320865,1777431772464,500.0,8.702e-05,2]
[421320866,1777431772628,505.10474493,8.702e-05,2]
[421320884,1777432146876,150.0,8.623e-05,2]
[421320885,1777432147026,187.43129394,8.623e-05,2]
[421320947,1777432229709,279.0,8.94e-05,5]
[421320951,1777432232115,-250.0,8.77e-05,2]
[421320952,1777432232126,-263.0,8.77e-05,2]
[421320953,1777432232136,-500.0,8.804e-05,2]
[421320954,1777432232147,-268.47839901,8.832e-05,2]
[421320955,1777432232168,-199.17160099,8.832e-05,2]
[421320956,1777432232178,-886.22839899,8.866e-05,2]
[421320957,1777432232228,-513.62562138,8.866e-05,2]
[421320958,1777432232239,-578.4908079,8.87e-05,2]
[421320959,1777432232253,-259.79291513,8.87e-05,2]
[421320960,1777432232282,-361.71627697,8.87e-05,2]
[421320961,1777432232293,-300.0,8.87e-05,2]
[421320962,1777432232303,-300.0,8.87e-05,2]
[421320963,1777432232314,-300.0,8.87e-05,2]
[421320964,1777432232326,-300.0,8.87e-05,2]
[421320965,1777432232336,-1200.0,8.87e-05,2]
[421320966,1777432232347,-1428.38747117,8.871e-05,2]
[421320967,1777432232359,-743.50770149,8.871e-05,2]
[421320968,1777432232370,-200.0,8.871e-05,2]
[421320969,1777432232381,-151.29550506,8.871e-05,2]
[421320970,1777432232391,-151.0,8.871e-05,2]
[421320971,1777432232401,-209.40437684,8.871e-05,2]
[421320972,1777432232411,-287.66674734,8.871e-05,2]
[421320973,1777432232425,-174.61919141,8.871e-05,2]
[421320974,1777432232436,-216.05758609,8.871e-05,2]
[421320975,1777432232447,-150.0,8.874e-05,2]
[421320976,1777432232457,-443.41,8.874e-05,2]
[421320981,1777432232779,-2817.16,8.874e-05,2]
[421320982,1777432232799,-9999.99,8.874e-05,2]
[421320983,1777432232811,-2320.20326022,8.875e-05,2]
[421320984,1777432232826,-733.8347317,8.875e-05,2]
[421320985,1777432232853,-829.98709775,8.875e-05,2]
[421320986,1777432232867,-1271.53091033,8.875e-05,2]
[421320987,1777432232878,-340.873,8.875e-05,2]
[421320988,1777432232889,-6231.3893,8.875e-05,2]
[421320989,1777432232900,-150.99,8.875e-05,2]
[421320990,1777432232912,-403009.961,8.876e-05,2]
[421320991,1777432232923,-1997.1459,8.877e-05,2]
[421320992,1777432232934,-308.1479148,8.896e-05,2]
[421320993,1777432232946,-500.0,8.896e-05,2]
[421320994,1777432232958,-500.0,8.896e-05,2]
[421320995,1777432232969,-373.93909945,8.896e-05,2]
[421320996,1777432232980,-500.0,8.896e-05,2]
[421320997,1777432232990,-500.0,8.896e-05,2]
[421320998,1777432233000,-500.0,8.896e-05,2]
[421320999,1777432233012,-500.0,8.896e-05,2]
[421321000,1777432233024,-500.0,8.896e-05,2]
[421321001,1777432233036,-281.08027931,8.896e-05,2]
[421321002,1777432233047,-500.0,8.896e-05,2]
[421321003,1777432233058,-500.0,8.896e-05,2]
[421321004,1777432233069,-500.35479479,8.896e-05,2]
[421321005,1777432233079,-500.97968492,8.896e-05,2]
[421321006,1777432233089,-500.0,8.897e-05,2]
[421321007,1777432233100,-882.87957881,8.897e-05,2]
[421321008,1777432233110,-882.87957881,8.897e-05,2]
[421321009,1777432233120,-882.87957881,8.897e-05,2]
[421321010,1777432233131,-882.87957881,8.897e-05,2]
[421321011,1777432233141,-882.87957881,8.897e-05,2]
[421321012,1777432233151,-882.87957881,8.897e-05,2]
[421321013,1777432233167,-882.87957881,8.897e-05,2]
[421321014,1777432233177,-882.87957881,8.897e-05,2]
[421321015,1777432233187,-882.87957881,8.897e-05,2]
[421321016,1777432233197,-882.87957881,8.897e-05,2]
[421321017,1777432233207,-882.87957881,8.897e-05,2]
[421321018,1777432233219,-882.87957881,8.897e-05,2]
[421321019,1777432233231,-882.87957881,8.897e-05,2]
[421321020,1777432233242,-882.87957881,8.897e-05,2]
[421321021,1777432233254,-882.87957881,8.897e-05,2]
[421321022,1777432233264,-882.87957881,8.897e-05,2]
[421321023,1777432233275,-882.87957881,8.897e-05,2]
[421321024,1777432233287,-882.87957881,8.897e-05,2]
[421321025,1777432233299,-882.87957881,8.897e-05,2]
[421321026,1777432233310,-882.87957881,8.897e-05,2]
[421321027,1777432233321,-882.87957881,8.897e-05,2]
[421321028,1777432233332,-882.87957881,8.897e-05,2]
[421321029,1777432233344,-882.87957881,8.897e-05,2]
[421321030,1777432233355,-882.87957881,8.897e-05,2]
[421321031,1777432233365,-882.87957881,8.897e-05,2]
[421321032,1777432233375,-882.87957881,8.897e-05,2]
[421321033,1777432233385,-882.87957881,8.897e-05,2]
[421321034,1777432233395,-882.87957881,8.897e-05,2]
[421321035,1777432233406,-882.87957881,8.897e-05,2]
[421321036,1777432233417,-882.87957881,8.897e-05,2]
[421321037,1777432233427,-882.87957881,8.897e-05,2]
[421321038,1777432233437,-882.87957881,8.897e-05,2]
[421321039,1777432233447,-882.87957881,8.897e-05,2]
[421321040,1777432233459,-882.87957881,8.897e-05,2]
[421321041,1777432233469,-882.87957881,8.897e-05,2]
[421321042,1777432233480,-882.87957881,8.897e-05,2]
[421321043,1777432233490,-882.87957881,8.897e-05,2]
[421321044,1777432233500,-207.66591182,8.897e-05,2]
[421321045,1777432233518,-675.21366699,8.897e-05,2]
[421321046,1777432233528,-882.87957881,8.897e-05,2]
[421321047,1777432233538,-882.87957881,8.897e-05,2]
[421321048,1777432233553,-882.87957881,8.897e-05,2]
[421321049,1777432233563,-882.87957881,8.897e-05,2]
[421321050,1777432233574,-882.87957881,8.897e-05,2]
[421321051,1777432233585,-882.87957881,8.897e-05,2]
[421321052,1777432233595,-882.87957881,8.897e-05,2]
[421321053,1777432233605,-882.87957881,8.897e-05,2]
[421321054,1777432233616,-882.87957881,8.897e-05,2]
[421321055,1777432233626,-882.87957881,8.897e-05,2]
[421321056,1777432233636,-882.87957881,8.897e-05,2]
[421321057,1777432233647,-882.87957881,8.897e-05,2]
[421321058,1777432233657,-1004.30483541,8.897e-05,2]
[421321059,1777432233668,-1004.30483541,8.897e-05,2]
[421321060,1777432233678,-1004.30483541,8.897e-05,2]
[421321061,1777432233688,-1004.30483541,8.897e-05,2]
[421321062,1777432233699,-1004.30483541,8.897e-05,2]
[421321063,1777432233710,-1004.30483541,8.897e-05,2]
[421321064,1777432233721,-1004.30483541,8.897e-05,2]
[421321065,1777432233731,-1004.30483541,8.897e-05,2]
[421321066,1777432233741,-1004.30483541,8.897e-05,2]
[421321067,1777432233751,-1004.30483541,8.897e-05,2]
[421321068,1777432233764,-1004.30483541,8.897e-05,2]
[421321069,1777432233774,-1004.30483541,8.897e-05,2]
[421321070,1777432233784,-1004.30483541,8.897e-05,2]
[421321071,1777432233797,-1004.30483541,8.897e-05,2]
[421321072,1777432233808,-1004.30483541,8.897e-05,2]
[421321073,1777432233819,-1004.30483541,8.897e-05,2]
[421321074,1777432233830,-1004.30483541,8.897e-05,2]
[421321075,1777432233842,-1004.30483541,8.897e-05,2]
[421321076,1777432233853,-401.51469477,8.897e-05,2]
[421321078,1777432238143,-602.79014064,8.897e-05,2]
[421321079,1777432238154,-1004.30483541,8.897e-05,2]
[421321080,1777432238164,-1004.30483541,8.897e-05,2]
[421321081,1777432238174,-1004.30483541,8.897e-05,2]
[421321082,1777432238184,-1004.30483541,8.897e-05,2]
[421321083,1777432238194,-1004.30483541,8.897e-05,2]
[421321084,1777432238203,-1004.30483541,8.897e-05,2]
[421321085,1777432238213,-1004.30483541,8.897e-05,2]
[421321086,1777432238223,-1004.30483541,8.897e-05,2]
[421321087,1777432238232,-1004.30483541,8.897e-05,2]
[421321088,1777432238242,-1004.30483541,8.897e-05,2]
[421321089,1777432238252,-1004.30483541,8.897e-05,2]
[421321090,1777432238261,-1004.30483541,8.897e-05,2]
[421321091,1777432238270,-1004.30483541,8.897e-05,2]
[421321092,1777432238280,-1092.28772815,8.897e-05,2]
[421321093,1777432238290,-1092.28772815,8.897e-05,2]
[421321094,1777432238299,-1092.28772815,8.897e-05,2]
[421321096,1777432238309,-13.14245703,8.897e-05,2]
[421321243,1777432239932,-452.77341858,8.897e-05,2]
[421321254,1777432240039,-561.22993896,8.897e-05,2]
[421321727,1777432246045,-65.14191358,8.897e-05,2]
[421321729,1777432246056,-1092.28772815,8.897e-05,2]
[421321731,1777432246066,-862.39491038,8.897e-05,2]
[421321838,1777432247214,-229.89281777,8.897e-05,2]
[421321839,1777432247224,-92.99878223,8.898e-05,2]
[421321840,1777432247247,-494.31698231,8.898e-05,2]
[421321841,1777432247266,-1591.38887834,8.898e-05,2]
[421321842,1777432247280,-722.8955016,8.898e-05,2]
[421321909,1777432460083,150.0,8.726e-05,2]
[421321910,1777432460246,297.33797553,8.726e-05,2]
[421321912,1777432589049,1046.0,0.0002,120]
[421321913,1777432613081,190.0,0.0002,120]
[421321929,1777433431940,-263.0,8.773e-05,2]
[421321930,1777433431950,-250.0,8.773e-05,2]
[421321931,1777433431960,-125.34053726,8.775e-05,2]
[421321932,1777433431972,-174.65946274,8.775e-05,2]
[421321933,1777433431981,-300.0,8.775e-05,2]
[421321934,1777433431992,-1200.0,8.775e-05,2]
[421321935,1777433432002,-300.0,8.775e-05,2]
[421321936,1777433432012,-150.0,8.775e-05,2]
[421321937,1777433432021,-200.0,8.793e-05,2]
[421321938,1777433432031,-202.29387468,8.793e-05,2]
[421321939,1777433432041,-1428.38747117,8.793e-05,2]
[421321940,1777433432052,-151.0,8.793e-05,2]
[421321941,1777433432062,-338.16740253,8.793e-05,2]
[421321942,1777433432357,-174.61919141,8.793e-05,2]
[421321943,1777433432369,-4951.175,8.795e-05,2]
[421321944,1777433432380,-337.113,8.795e-05,2]
[421321945,1777433432391,-15342.32045625,8.798e-05,2]
[421321946,1777433432412,-15166.95375116,8.798e-05,2]
[421321947,1777433432432,-378.71365915,8.798e-05,2]
[421321948,1777433432446,-292.97700002,8.798e-05,2]
[421321952,1777433438096,-22637.82891913,8.798e-05,2]
[421321953,1777433438151,-14808.94453654,8.798e-05,2]
[421321954,1777433438163,-49208.11776348,8.798e-05,2]
[421321955,1777433438174,-714.50817394,8.798e-05,2]
[421321956,1777433438207,-302.97385118,8.798e-05,2]
[421321957,1777433438219,-8657.48823182,8.798e-05,2]
[421321958,1777433438230,-1233.59388456,8.798e-05,2]
[421321959,1777433438316,-7301.41972174,8.798e-05,2]
[421321960,1777433438328,-597.34621392,8.798e-05,2]
[421321961,1777433438372,-1733.20462289,8.798e-05,2]
[421321962,1777433438384,-1109.46875634,8.798e-05,2]
[421321963,1777433438395,-290.84887371,8.798e-05,2]
[421321965,1777433440234,-933.835,8.798e-05,2]
[421321966,1777433440345,-541.99031421,8.798e-05,2]
[421321967,1777433440665,-120300.10896996,8.798e-05,2]
[421321968,1777433440675,-151.0,8.848e-05,2]
[421321969,1777433440684,-160593.91,8.891e-05,2]
[421321970,1777433440694,-574.88,8.893e-05,2]
[421321971,1777433440703,-420.12003103,8.894e-05,2]
[421321972,1777433440713,-500.0,8.894e-05,2]
[421321973,1777433440723,-500.0,8.894e-05,2]
[421321974,1777433440732,-500.0,8.894e-05,2]
[421321975,1777433440742,-500.0,8.894e-05,2]
[421321976,1777433440751,-500.0,8.894e-05,2]
[421321977,1777433440760,-500.0,8.894e-05,2]
[421321978,1777433440770,-500.0,8.894e-05,2]
[421321980,1777433440780,-500.0,8.894e-05,2]
[421321981,1777433440789,-500.0,8.894e-05,2]
[421321982,1777433440798,-500.0,8.894e-05,2]
[421321983,1777433440808,-500.0,8.894e-05,2]
[421321984,1777433440817,-500.0,8.894e-05,2]
[421321985,1777433440826,-500.0,8.894e-05,2]
[421321986,1777433440836,-500.0,8.894e-05,2]
[421321987,1777433440845,-500.0,8.894e-05,2]
[421321988,1777433440854,-500.0,8.894e-05,2]
[421321989,1777433440864,-500.0,8.894e-05,2]
[421321990,1777433440873,-500.0,8.894e-05,2]
[421321991,1777433440882,-500.0,8.894e-05,2]
[421321992,1777433440892,-500.0,8.894e-05,2]
[421321993,1777433440901,-162.81405453,8.894e-05,2]
[421321994,1777433440911,-500.0,8.894e-05,2]
[421321995,1777433440920,-500.0,8.894e-05,2]
[421321996,1777433440929,-500.0,8.894e-05,2]
[421321997,1777433440940,-500.0,8.894e-05,2]
[421321999,1777433440951,-500.0,8.894e-05,2]
[421322001,1777433440961,-500.0,8.894e-05,2]
[421322003,1777433440971,-500.0,8.894e-05,2]
[421322004,1777433440982,-500.0,8.894e-05,2]
[421322005,1777433440992,-500.0,8.894e-05,2]
[421322006,1777433441002,-500.0,8.894e-05,2]
[421322007,1777433441012,-500.0,8.894e-05,2]
[421322008,1777433441022,-500.0,8.894e-05,2]
[421322009,1777433441032,-151.0,8.895e-05,2]
[421322010,1777433441041,-9999.99,8.895e-05,2]
[421322011,1777433441051,-1838.1499,8.897e-05,2]
[421322012,1777433441060,-100352.3584581,8.897e-05,2]
[421322013,1777433441070,-151.0,8.897e-05,2]
[421322014,1777433441080,-151.0,8.897e-05,2]
[421322015,1777433441089,-151.0,8.897e-05,2]
[421322016,1777433441099,-379.433178,8.897e-05,2]
[421322017,1777433441108,-379.433178,8.897e-05,2]
[421322018,1777433441118,-379.433178,8.897e-05,2]
[421322019,1777433441127,-379.433178,8.897e-05,2]
[421322020,1777433441137,-388.484712,8.897e-05,2]
[421322021,1777433441147,-388.484712,8.897e-05,2]
[421322022,1777433441157,-388.484712,8.897e-05,2]
[421322023,1777433441166,-388.484712,8.897e-05,2]
[421322024,1777433441177,-151.0,8.897e-05,2]
[421322025,1777433441186,-151.0,8.897e-05,2]
[421322026,1777433441196,-89786.0271566,8.898e-05,2]
[421322027,1777433441206,-758.3328806,8.898e-05,2]
[421322028,1777433441216,-151.0,8.898e-05,2]
[421322029,1777433441227,-151.0,8.898e-05,2]
[421322030,1777433441237,-151.0,8.898e-05,2]
[421322031,1777433441248,-379.433178,8.898e-05,2]
[421322032,1777433441258,-379.433178,8.898e-05,2]
[421322033,1777433441268,-379.433178,8.898e-05,2]
[421322034,1777433441278,-379.433178,8.898e-05,2]
[421322035,1777433441288,-388.484712,8.898e-05,2]
[421322036,1777433441298,-388.484712,8.898e-05,2]
[421322037,1777433441308,-388.484712,8.898e-05,2]
[421322038,1777433441319,-388.484712,8.898e-05,2]
[421322039,1777433441329,-151.0,8.898e-05,2]
[421322040,1777433441338,-151.0,8.898e-05,2]
[421322041,1777433441347,-151.0,8.903e-05,2]
[421322042,1777433441357,-500.0,8.903e-05,2]
[421322043,1777433441367,-19372.72,8.904e-05,2]
[421322044,1777433441377,-157.80595334,8.937e-05,2]
[421322045,1777433441389,-1533.0,8.94e-05,2]
[421322046,1777433441398,-1533.0,8.94e-05,2]
[421322047,1777433441408,-1533.0,8.94e-05,2]
[421322048,1777433441418,-152.0,8.94e-05,2]
[421322049,1777433441428,-167.0,8.94e-05,2]
[421322050,1777433441437,-152.0,8.94e-05,2]
[421322051,1777433441447,-1533.0,8.94e-05,2]